[Event "5th EKA IIFL Investment 2019"]
[Site "Mumbai"]
[Date "2020.01.03"]
[Round "5.50"]
[White "Pranav, Shetty"]
[Black "Dixit, Nikhil"]
[Result "1-0"]
[ECO "C11"]
[WhiteElo "2162"]
[BlackElo "2318"]
[Annotator "ChessBase"]
[PlyCount "229"]
[EventDate "2019.12.30"]
[EventType "swiss"]
[EventCountry "IND"]
[SourceTitle "playchess.com"]
[Source "ChessBase"]
[SourceQuality "1"]
[TimeControl "40/5400+30:1800+30"]

1. e4 {[%emt 0:00:00]} e6 {[%emt 0:01:16]} 2. d4 {[%emt 0:00:00]} d5 {[%emt 0:00:02]} 3. Nc3 {[%emt 0:00:00]} Nf6 {[%emt 0:00:02]} 4. e5 {[%emt 0:00:10]} Nfd7 {[%emt 0:00:05]} 5. Nce2 {[%emt 0:00:13]} c5 {[%emt 0:01:07]} 6. c3 {[%emt 0:00:04]} Nc6 {[%emt 0:00:47]} 7. Nf3 {[%emt 0:00:06]} Ncb8 {[%emt 0:00:13]} 8. Nfg1 {[%emt 0:00:54]} Nc6 {[%emt 0:00:47]} 9. Nf3 {[%emt 0:00:06]} Ncb8 {[%emt 0:00:13]} 10. Nfg1 {[%emt 0:00:54]} Nc6 {[%emt 0:00:47]} 11. Nf3 {[%emt 0:00:06]} Be7 {[%emt 0:01:55]} 12. Nfg1 {[%emt 0:00:54]} Bf8 {[%emt 0:00:00]} 13. Nf3 {[%emt 0:00:06]} Be7 {[%emt 0:01:00]} 14. a3 {[%emt 0:00:13]} a5 {[%emt 0:04:37]} 15. Nf4 {[%emt 0:02:31]} cxd4 {[%emt 0:05:36]} 16. cxd4 {[%emt 0:00:06]} Qb6 {[%emt 0:05:04]} 17. h4 {[%emt 0:07:19]} a4 {[%emt 0:02:36]} 18. Be2 {[%emt 0:06:28]} h6 {[%emt 0:07:20]} 19. Rh3 {[%emt 0:10:22]} g6 {[%emt 0:04:03]} 20. Kf1 {[%emt 0:07:54]} Nf8 {[%emt 0:01:38]} 21. Nd3 {[%emt 0:00:45]} Nd7 {[%emt 0:00:00]} 22. Nf4 {[%emt 0:00:15]} Nf8 {[%emt 0:01:00]} 23. Nd3 {[%emt 0:00:45]} Bd7 {[%emt 0:01:45]} 24. Nf4 {[%emt 0:00:15]} Bc8 {[%emt 0:00:00]} 25. Nd3 {[%emt 0:00:45]} Bd7 {[%emt 0:01:00]} 26. Nf4 {[%emt 0:00:15]} Bc8 {[%emt 0:00:00]} 27. Nd3 {[%emt 0:00:45]} Bd7 {[%emt 0:01:00]} 28. Nf4 {[%emt 0:00:15]} Bc8 {[%emt 0:00:00]} 29. Nd3 {[%emt 0:00:45]} Bd7 {[%emt 0:01:00]} 30. Nf4 {[%emt 0:00:15]} Bc8 {[%emt 0:00:00]} 31. Nd3 {[%emt 0:00:45]} Bd7 {[%emt 0:01:00]} 32. Nf4 {[%emt 0:00:15]} Bc8 {[%emt 0:00:00]} 33. Nd3 {[%emt 0:00:45]} Bd7 {[%emt 0:01:00]} 34. Nf4 {[%emt 0:00:15]} Bc8 {[%emt 0:00:00]} 35. Nd3 {[%emt 0:00:45]} Bd7 {[%emt 0:00:00]} 36. Nf4 {[%emt 0:00:15]} Bc8 {[%emt 0:00:15]} 37. Nd3 {[%emt 0:00:45]} Bd7 {[%emt 0:01:45]} 38. Nf4 {[%emt 0:00:15]} Bc8 {[%emt 0:00:00]} 39. Nd3 {[%emt 0:00:45]} Bd7 {[%emt 0:00:00]} 40. Nf4 {[%emt 0:00:15]} Bc8 {[%emt 0:00:15]} 41. Nd3 {[%emt 0:30:45]} Bd7 {[%emt 0:16:53]} 42. Nc5 {[%emt 0:15:16]} Bc8 {[%emt 0:14:07]} 43. Nd3 {[%emt 0:00:00]} Bd7 {[%emt 0:02:50]} 44. Nc5 {[%emt 0:00:33]} Bxc5 {[%emt 0:03:57]} 45. dxc5 {[%emt 0:00:30]} Qc7 {[%emt 0:02:37]} 46. Be3 {[%emt 0:00:00]} Qb6 {[%emt 0:00:00]} 47. Bc1 {[%emt 0:01:00]} Qc7 {[%emt 0:01:00]} 48. Be3 {[%emt 0:02:11]} Na5 {[%emt 0:00:00]} 49. Bc1 {[%emt 0:00:00]} Nc6 {[%emt 0:01:00]} 50. Be3 {[%emt 0:01:00]} Na5 {[%emt 0:00:00]} 51. Bc1 {[%emt 0:00:00]} Nc6 {[%emt 0:01:00]} 52. Be3 {[%emt 0:01:00]} Na5 {[%emt 0:00:00]} 53. Bc1 {[%emt 0:00:00]} Nc6 {[%emt 0:01:00]} 54. Be3 {[%emt 0:01:00]} Na5 {[%emt 0:00:00]} 55. Bc1 {[%emt 0:00:00]} Nc6 {[%emt 0:01:00]} 56. Be3 {[%emt 0:01:00]} Na5 {[%emt 0:00:00]} 57. Bc1 {[%emt 0:00:00]} Nc6 {[%emt 0:01:00]} 58. Be3 {[%emt 0:01:00]} Na5 {[%emt 0:00:00]} 59. Bc1 {[%emt 0:00:00]} Nc6 {[%emt 0:01:00]} 60. Be3 {[%emt 0:01:00]} Na5 {[%emt 0:00:00]} 61. Bc1 {[%emt 0:00:00]} Nc6 {[%emt 0:01:00]} 62. Be3 {[%emt 0:01:00]} Na5 {[%emt 0:00:00]} 63. Bc1 {[%emt 0:00:00]} Nc6 {[%emt 0:01:00]} 64. Be3 {[%emt 0:01:00]} Na5 {[%emt 0:00:00]} 65. Bc1 {[%emt 0:00:00]} Nc6 {[%emt 0:01:00]} 66. Be3 {[%emt 0:01:00]} Na5 {[%emt 0:04:07]} 67. Nd4 {[%emt 0:19:34]} Nc6 {[%emt 0:00:00]} 68. Nf3 {[%emt 0:00:00]} Na5 {[%emt 0:01:00]} 69. Nd4 {[%emt 0:01:00]} Nc6 {[%emt 0:00:00]} 70. Nf3 {[%emt 0:00:00]} Na5 {[%emt 0:01:00]} 71. Nd4 {[%emt 0:01:00]} Nc6 {[%emt 0:00:00]} 72. Nf3 {[%emt 0:00:00]} Na5 {[%emt 0:01:00]} 73. Nd4 {[%emt 0:01:00]} Nc6 {[%emt 0:00:00]} 74. Nf3 {[%emt 0:00:00]} Na5 {[%emt 0:01:00]} 75. Nd4 {[%emt 0:01:00]} Nc6 {[%emt 0:00:00]} 76. Nf3 {[%emt 0:00:00]} Na5 {[%emt 0:01:00]} 77. Nd4 {[%emt 0:01:00]} Nc4 {[%emt 0:08:29]} 78. Bxc4 {[%emt 0:01:00]} dxc4 {[%emt 0:00:04]} 79. Rc1 {[%emt 0:09:43]} Qxe5 {[%emt 0:08:01]} 80. Qe2 {[%emt 0:11:06]} Qc7 {[%emt 0:00:00]} 81. Qd1 {[%emt 0:00:00]} Qe5 {[%emt 0:01:00]} 82. Qe2 {[%emt 0:01:00]} Qc7 {[%emt 0:00:00]} 83. Qd1 {[%emt 0:00:00]} Qe5 {[%emt 0:01:00]} 84. Qe2 {[%emt 0:01:00]} Qc7 {[%emt 0:00:00]} 85. Qd1 {[%emt 0:00:00]} Qe5 {[%emt 0:01:00]} 86. Qe2 {[%emt 0:01:00]} Qe4 {[%emt 0:09:07]} 87. Qd1 {[%emt 0:00:00]} Qe5 {[%emt 0:00:00]} 88. Qe2 {[%emt 0:01:00]} Qe4 {[%emt 0:01:00]} 89. Rxc4 {[%emt 0:03:18]} e5 {[%emt 0:01:08]} 90. Nb5 Qc6 {[%emt 0:07:52]} 91. Nd6+ {[%emt 0:02:05]} Ke7 {[%emt 0:00:00]} 92. Nb5 {[%emt 0:00:54]} Ke8 {[%emt 0:01:00]} 93. Nd6+ {[%emt 0:00:06]} Ke7 94. Rf3 {[%emt 0:01:09]} Be6 {[%emt 0:01:07]} 95. Rb4 {[%emt 0:00:00]} Bd7 {[%emt 0:00:22]} 96. Rc4 {[%emt 0:01:00]} Be6 {[%emt 0:00:38]} 97. Rb4 {[%emt 0:00:25]} Nd7 {[%emt 0:00:50]} 98. Rxb7 {[%emt 0:00:40]} Rhb8 {[%emt 0:01:55]} 99. Rb4 {[%emt 0:00:20]} Rh8 {[%emt 0:00:30]} 100. Rb7 {[%emt 0:00:40]} Rhb8 {[%emt 0:00:30]} 101. Rxd7+ {[%emt 0:00:40]} Kxd7 {[%emt 0:01:59]} 102. Nxf7 {[%emt 0:00:00]} Qd5 {[%emt 0:07:14]} 103. Nd6 {[%emt 0:00:40]} Qc6 {[%emt 0:00:00]} 104. Nf7 {[%emt 0:01:33]} Qd5 {[%emt 0:03:35]} 105. Bxh6 {[%emt 0:00:00]} Rxb2 {[%emt 0:00:11]} 106. Nxe5+ {[%emt 0:00:00]} Kc7 {[%emt 0:00:00]} 107. Nf7 {[%emt 0:00:56]} Kd7 {[%emt 0:01:03]} 108. Ne5+ {[%emt 0:00:33]} Kc7 {[%emt 0:00:00]} 109. Qe1 {[%emt 0:00:00] Kd7 Qe2+ Kc7 Qe1 Kd7 Qe2+ Kc7 Qe1} Rab8 {[%emt 0:02:18]} 110. Qa5+ {[%emt 0:00:39] Ra8 Qe1 Rab8 Qa5+ Ra8 Qe1 Rab8 Qa5+ Ra8 Qe1 Rab8 Qa5+} Kb7 {[%emt 0:02:21]} 111. c6+ {[%emt 0:00:01]} Qxc6 112. Nxc6 {[%emt 0:00:02]} Bc4+ {[%emt 0:01:02]} 113. Kg1 {[%emt 0:00:14]} Be6 {[%emt 0:00:30]} 114. Kf1 {[%emt 0:00:46]} Bc4+ {[%emt 0:00:30]} 115. Kg1 {[%emt 0:00:14]} 1-0

[Event "5th EKA IIFL Investment 2019"]
[Site "Mumbai"]
[Date "2020.01.03"]
[Round "5.52"]
[White "Pranav Vijay"]
[Black "Priyanka, Kumari"]
[Result "0-1"]
[ECO "B51"]
[WhiteElo "2265"]
[BlackElo "1874"]
[Annotator "ChessBase"]
[PlyCount "264"]
[EventDate "2019.12.30"]
[EventType "swiss"]
[EventCountry "IND"]
[SourceTitle "playchess.com"]
[Source "ChessBase"]
[SourceQuality "1"]
[TimeControl "40/5400+30:1800+30"]

1. e4 c5 {[%emt 0:00:00]} 2. Nf3 {[%emt 0:00:00]} d6 {[%emt 0:00:03]} 3. Bb5+ {[%emt 0:00:00]} Nd7 {[%emt 0:00:13]} 4. d4 {[%emt 0:00:00]} Ngf6 {[%emt 0:01:03]} 5. Nc3 {[%emt 0:00:14]} a6 {[%emt 0:00:19]} 6. Bxd7+ {[%emt 0:01:15]} Nxd7 {[%emt 0:00:17]} 7. dxc5 {[%emt 0:03:41]} Nxc5 {[%emt 0:00:45]} 8. Be3 {[%emt 0:00:00]} Nd7 {[%emt 0:00:19]} 9. Bc1 {[%emt 0:01:00]} Nc5 {[%emt 0:00:41]} 10. Be3 {[%emt 0:00:00]} Nd7 {[%emt 0:00:19]} 11. Bc1 {[%emt 0:01:00]} Nc5 {[%emt 0:00:41]} 12. Be3 {[%emt 0:00:00]} Nd7 {[%emt 0:00:19]} 13. Bc1 {[%emt 0:01:00]} Nc5 {[%emt 0:00:41]} 14. Be3 {[%emt 0:00:00]} Nd7 {[%emt 0:00:19]} 15. Bc1 Nc5 {[%emt 0:00:41]} 16. Be3 {[%emt 0:01:30]} e6 {[%emt 0:00:50]} 17. Qd4 {[%emt 0:00:00]} Nd7 {[%emt 0:00:00]} 18. Qd1 {[%emt 0:01:00]} Nc5 {[%emt 0:01:00]} 19. Qd4 {[%emt 0:00:00]} Nd7 {[%emt 0:00:00]} 20. Qd1 {[%emt 0:01:00]} Nc5 {[%emt 0:01:00]} 21. Qd4 {[%emt 0:00:00]} Nd7 {[%emt 0:00:00]} 22. Qd1 {[%emt 0:01:00]} Nc5 {[%emt 0:24:09]} 23. Qd4 {[%emt 0:04:43]} b5 {[%emt 0:00:00]} 24. Bg5 {[%emt 0:07:37]} Qc7 {[%emt 0:06:21]} 25. O-O {[%emt 0:00:30]} Bb7 26. Rad1 {[%emt 0:08:34]} f6 {[%emt 0:09:53]} 27. Bc1 {[%emt 0:00:28]} Be7 {[%emt 0:00:00]} 28. Bg5 {[%emt 0:00:32]} Bf8 {[%emt 0:01:00]} 29. Bc1 {[%emt 0:00:28]} Be7 {[%emt 0:00:39]} 30. a3 {[%emt 0:05:25]} O-O {[%emt 0:03:56]} 31. Qe3 {[%emt 0:00:12]} Rad8 {[%emt 0:04:40]} 32. Nd4 {[%emt 0:00:30]} Ra8 {[%emt 0:00:00]} 33. Nf3 {[%emt 0:00:30]} Rad8 {[%emt 0:01:00]} 34. Nd4 {[%emt 0:00:30]} Ra8 {[%emt 0:00:00]} 35. Nf3 {[%emt 0:00:30]} Rad8 {[%emt 0:01:00]} 36. Nd4 {[%emt 0:00:30]} Ra8 {[%emt 0:00:00]} 37. Nf3 {[%emt 0:00:30]} Rad8 {[%emt 0:01:00]} 38. Nd4 {[%emt 0:00:30]} Ra8 {[%emt 0:00:00]} 39. Nf3 {[%emt 0:00:30]} Rad8 {[%emt 0:01:00]} 40. Nd4 {[%emt 0:00:30]} Ra8 {[%emt 0:00:00]} 41. Nf3 {[%emt 0:30:30]} Rad8 {[%emt 0:31:00]} 42. Nd4 {[%emt 0:00:30]} Bc8 {[%emt 0:12:03]} 43. f4 {[%emt 0:01:36]} Na4 {[%emt 0:05:43]} 44. Rd3 {[%emt 0:06:47]} Nc5 {[%emt 0:00:00]} 45. Rdd1 {[%emt 0:00:00]} Na4 {[%emt 0:01:00]} 46. Rd3 {[%emt 0:01:00]} Nc5 {[%emt 0:00:00]} 47. Rdd1 {[%emt 0:00:00]} Na4 {[%emt 0:01:00]} 48. Rd3 {[%emt 0:00:00]} Nb6 {[%emt 0:08:10]} 49. Rdd1 {[%emt 0:00:00]} Na4 {[%emt 0:00:00]} 50. Rd3 {[%emt 0:00:00]} Nb6 {[%emt 0:01:00]} 51. Rdd1 {[%emt 0:00:00]} Na4 {[%emt 0:00:00]} 52. Rd3 {[%emt 0:05:13]} Nb6 {[%emt 0:01:00]} 53. Kh1 {[%emt 0:01:34]} Na4 {[%emt 0:00:00]} 54. Kg1 {[%emt 0:00:00]} Nb6 {[%emt 0:01:00]} 55. Kh1 {[%emt 0:01:00]} e5 {[%emt 0:03:39]} 56. Nde2 {[%emt 0:01:16]} f5 {[%emt 0:03:09]} 57. Ng3 {[%emt 0:06:31]} fxe4 {[%emt 0:02:09]} 58. Qxe4 Bb7 {[%emt 0:02:16]} 59. Qe2 {[%emt 0:00:55]} Rde8 {[%emt 0:01:45]} 60. fxe5 {[%emt 0:00:57]} Rxf1+ {[%emt 0:00:48]} 61. Qxf1 {[%emt 0:02:26]} dxe5 {[%emt 0:00:09]} 62. Qe2 {[%emt 0:01:10]} Rf8 {[%emt 0:04:15]} 63. Rd1 {[%emt 0:02:34]} Qc6 {[%emt 0:01:07]} 64. Rd3 {[%emt 0:00:00]} Qc7 {[%emt 0:00:00]} 65. Rd1 {[%emt 0:01:00]} Qc6 {[%emt 0:01:00]} 66. Nge4 {[%emt 0:04:47]} a5 {[%emt 0:02:34]} 67. Ng3 {[%emt 0:07:12]} b4 {[%emt 0:00:56]} 68. axb4 {[%emt 0:00:09]} axb4 {[%emt 0:00:07]} 69. Nce4 {[%emt 0:00:03]} Nd5 {[%emt 0:00:25]} 70. Re1 {[%emt 0:04:52]} Bd8 {[%emt 0:01:57]} 71. Rd1 {[%emt 0:00:00]} Be7 {[%emt 0:00:00]} 72. Re1 {[%emt 0:01:00]} Bd8 {[%emt 0:01:00]} 73. Rd1 {[%emt 0:00:00]} Be7 {[%emt 0:00:00]} 74. Re1 {[%emt 0:01:00]} Bd8 {[%emt 0:01:00]} 75. Qh5 {[%emt 0:06:48]} Nf6 {[%emt 0:01:33]} 76. Qd1 {[%emt 0:00:30]} Bb6 {[%emt 0:01:02]} 77. h3 {[%emt 0:03:24]} Nxe4 {[%emt 0:00:33]} 78. Nxe4 {[%emt 0:00:42]} Rf2 {[%emt 0:00:43]} 79. Ng3 Rf8 80. Ne4 {[%emt 0:01:00]} Rf2 {[%emt 0:01:00]} 81. Ng3 Rf8 82. Ne4 {[%emt 0:01:00]} Rf2 {[%emt 0:01:00]} 83. Qg4 {[%emt 0:04:01]} Rxc2 {[%emt 0:00:30]} 84. Bd2 {[%emt 0:03:03]} Rc4 {[%emt 0:00:37]} 85. Bg5 {[%emt 0:00:06]} Rc2 {[%emt 0:00:23]} 86. Bd2 {[%emt 0:00:54]} Rc4 {[%emt 0:00:37]} 87. Bg5 {[%emt 0:00:06]} Bc8 {[%emt 0:00:34]} 88. Qf3 {[%emt 0:00:00]} h6 {[%emt 0:00:00]} 89. Be7 {[%emt 0:00:00]} Bb7 {[%emt 0:00:00]} 90. Qf8+ {[%emt 0:00:00]} Kh7 {[%emt 0:00:00]} 91. Qf5+ {[%emt 0:00:00]} Kg8 {[%emt 0:00:00]} 92. Qf8+ {[%emt 0:00:00]} Kh7 {[%emt 0:00:00]} 93. Qf5+ {[%emt 0:00:00]} Qg6 {[%emt 0:00:00]} 94. Qxg6+ {[%emt 0:00:00]} Kxg6 {[%emt 0:00:00]} 95. Bg5 {[%emt 0:00:00]} Kh7 {[%emt 0:00:00]} 96. Be7 {[%emt 0:00:00]} Kg6 {[%emt 0:00:00]} 97. Nd6 {[%emt 0:00:00]} Rc7 {[%emt 0:00:00]} 98. Ne4 {[%emt 0:00:00]} Rc4 {[%emt 0:00:00]} 99. Nd6 {[%emt 0:00:00]} Rc7 {[%emt 0:00:00]} 100. Ne4 {[%emt 0:00:00]} Rc4 {[%emt 0:00:00]} 101. Nd6 {[%emt 0:00:00]} Rc7 {[%emt 0:00:00]} 102. Ne4 {[%emt 0:00:00]} Rc4 {[%emt 0:00:00]} 103. Nd6 {[%emt 0:00:00]} Rc7 {[%emt 0:00:00]} 104. Ne4 {[%emt 0:00:00]} Rc4 {[%emt 0:00:00]} 105. Nd6 {[%emt 0:00:00]} Rc7 {[%emt 0:00:00]} 106. Ne4 {[%emt 0:00:00]} Rc4 {[%emt 0:00:00]} 107. Nd6 {[%emt 0:00:00]} Rc7 {[%emt 0:00:00]} 108. Ne4 {[%emt 0:00:00]} Rc4 {[%emt 0:00:00]} 109. Nd6 {[%emt 0:00:00]} Rc7 {[%emt 0:00:00]} 110. Bd8 {[%emt 0:02:16]} Rd7 {[%emt 0:01:00]} 111. Bxb6 {[%emt 0:00:15]} Rxd6 {[%emt 0:00:08]} 112. Bc7 {[%emt 0:00:04]} Rd2 {[%emt 0:00:54]} 113. Rxe5 {[%emt 0:02:33]} Rxb2 {[%emt 0:02:45]} 114. Rb5 {[%emt 0:00:12]} Bxg2+ {[%emt 0:00:26]} 115. Kg1 {[%emt 0:00:04]} Bxh3 {[%emt 0:00:34]} 116. Bd6 {[%emt 0:00:04]} Bg2 {[%emt 0:00:26]} 117. Bc7 Bh3 {[%emt 0:00:34]} 118. Bd6 {[%emt 0:01:00]} b3 {[%emt 0:00:45]} 119. Be5 {[%emt 0:00:23]} Rg2+ {[%emt 0:00:59]} 120. Kh1 {[%emt 0:00:02]} Re2 {[%emt 0:00:48]} 121. Rb6+ {[%emt 0:00:04]} Kh7 {[%emt 0:00:24]} 122. Rb5 {[%emt 0:00:56]} Kg6 {[%emt 0:00:36]} 123. Rb6+ {[%emt 0:00:04]} Kh7 {[%emt 0:00:24]} 124. Bd4 {[%emt 0:00:36]} Be6 {[%emt 0:00:31]} 125. Kg1 {[%emt 0:00:01]} g5 {[%emt 0:00:24]} 126. Kf1 {[%emt 0:00:05]} Re4 {[%emt 0:00:22]} 127. Bb2 {[%emt 0:00:08]} Bc4+ {[%emt 0:00:17]} 128. Kg1 {[%emt 0:00:06]} Re1+ {[%emt 0:00:06]} 129. Kf2 {[%emt 0:00:02]} Re2+ {[%emt 0:00:13]} 130. Kg3 {[%emt 0:00:15]} Rxb2 {[%emt 0:00:14]} 131. Kg4 {[%emt 0:00:01]} Rg2+ {[%emt 0:00:33] Kg3 Rb2 Kg4 Rg2+} 132. Kh5 {[%emt 0:00:03]} Be2# 0-1

[Event "5th EKA IIFL Investment 2019"]
[Site "Mumbai"]
[Date "2020.01.03"]
[Round "5.54"]
[White "Souhardo Basak"]
[Black "Kamdar Udit"]
[Result "1/2-1/2"]
[ECO "C05"]
[WhiteElo "2254"]
[BlackElo "2107"]
[Annotator "NA"]
[PlyCount "79"]
[EventDate "2019.12.30"]
[EventType "swiss"]
[EventCountry "IND"]
[SourceTitle "playchess.com"]
[Source "ChessBase"]
[SourceQuality "1"]
[TimeControl "40/5400+30:1800+30"]

1. e4 e6 2. d4 d5 3. Nd2 Nf6 4. e5 Nfd7 5. c3 c5 6. Bd3 Nc6 7. Ngf3 Qb6 8. O-O cxd4 9. cxd4 Nxd4 10. Nxd4 Qxd4 11. Nf3 Qb6 12. Qa4 a6 13. Be3 Qxb2 14. a3 Qc3 15. Be2 Qc6 16. Qf4 Nc5 17. Rfc1 Qa4 18. Rxc5 Qxf4 19. Rxc8+ Rxc8 20. Bxf4 Rc3 21. a4 Ra3 22. Rxa3 Bxa3 23. Bd3 Kd7 24. Kf1 h6 25. Ke2 Bb2 26. Kd1 Rc8 27. Bd2 Rc5 28. Bb4 Rc8 29. Bc2 Rc4 30. Bf8 Rg4 31. g3 Ke8 32. h3 Rc4 33. Bxg7 h5 34. Nd2 Rc8 35. g4 hxg4 36. h4 f5 37. exf6 Kf7 38. h5 Bxf6 39. Bh6 Ke7 40. Bg6 1/2-1/2

[Event "5th EKA IIFL Investment 2019"]
[Site "Mumbai"]
[Date "2020.01.03"]
[Round "5.55"]
[White "Raahul V S"]
[Black "Kumar, Gaurav"]
[Result "1/2-1/2"]
[ECO "A06"]
[WhiteElo "2252"]
[BlackElo "2075"]
[Annotator "ChessBase"]
[PlyCount "122"]
[EventDate "2019.12.30"]
[EventType "swiss"]
[EventCountry "IND"]
[SourceTitle "playchess.com"]
[Source "ChessBase"]
[SourceQuality "1"]
[TimeControl "40/5400+30:1800+30"]

1. Nf3 d5 2. g3 Bg4 3. Bg2 Nd7 4. c4 c6 5. cxd5 cxd5 6. Qa4 Ngf6 7. Nc3 Bxf3 8. Bxf3 e6 9. d4 a6 10. Bf4 b5 11. Qb3 Nb6 12. O-O Bd6 13. a4 Bxf4 14. gxf4 Nxa4 15. Nxa4 bxa4 16. Qxa4+ Qd7 17. Rfc1 Qxa4 18. Rxa4 Kd7 19. e3 Rhb8 20. b4 Rb6 21. Rc5 Rab8 22. f5 Ne8 23. Bh5 g6 24. fxe6+ fxe6 25. Be2 Nc7 26. Ra2 Rxb4 27. Bxa6 Ra8 28. Bb5+ Rxb5 29. Rxc7+ Kxc7 30. Ra5 Ra7 31. Rxa7+ Rb7 32. Ra8 Kd6 33. Kg2 Re7 34. Re8 Rf7 35. Kg3 Kd7 36. Ra8 Ke7 37. h4 Kf6 38. f3 h5 39. Ra6 Kf5 40. Rd6 Rf8 41. Rd7 Kf6 42. Kf4 e5+ 43. Kg3 exd4 44. exd4 Ke6 45. Ra7 Rf5 46. Ra6+ Kf7 47. Rd6 Kg7 48. f4 Kf7 49. Kf3 Kg7 50. Re6 Kf7 51. Re5 Kf6 52. Ke3 Rxe5+ 53. dxe5+ Kf5 54. Kd4 Ke6 55. Kc5 g5 56. hxg5 h4 57. g6 h3 58. f5+ Kxf5 59. g7 h2 60. g8=Q h1=Q 61. Kd6 Qh6+ 1/2-1/2

[Event "5th EKA IIFL Investment 2019"]
[Site "Mumbai"]
[Date "2020.01.03"]
[Round "5.56"]
[White "Varun, Vij"]
[Black "Shiva Pavan Teja Sharma U"]
[Result "1-0"]
[ECO "B13"]
[WhiteElo "1964"]
[BlackElo "2072"]
[Annotator "NA RC"]
[PlyCount "57"]
[EventDate "2019.12.30"]
[EventType "swiss"]
[EventCountry "IND"]
[SourceTitle "playchess.com"]
[Source "ChessBase"]
[SourceQuality "1"]
[TimeControl "40/5400+30:1800+30"]

1. e4 {[%emt 0:00:00]} c6 {[%emt 0:00:00]} 2. d4 {[%emt 0:00:00]} d5 {[%emt 0:00:16]} 3. exd5 {[%emt 0:00:00]} cxd5 {[%emt 0:00:13]} 4. Bd3 {[%emt 0:00:04]} Nc6 {[%emt 0:00:36]} 5. c3 {[%emt 0:00:07]} Nf6 {[%emt 0:00:35]} 6. Bf4 {[%emt 0:01:11]} Bg4 {[%emt 0:00:37]} 7. Qb3 {[%emt 0:01:10]} Qc8 {[%emt 0:00:45]} 8. Nd2 {[%emt 0:02:25]} e6 {[%emt 0:01:10]} 9. Ngf3 {[%emt 0:00:31]} Be7 {[%emt 0:00:25]} 10. O-O {[%emt 0:00:14]} O-O {[%emt 0:00:18]} 11. Rae1 {[%emt 0:02:48]} Bh5 {[%emt 0:01:11]} 12. Qc2 {[%emt 0:04:02]} Bg6 {[%emt 0:00:50]} 13. Bxg6 {[%emt 0:00:50]} hxg6 {[%emt 0:00:08]} 14. Qd3 {[%emt 0:00:18]} a6 {[%emt 0:02:45]} 15. Ng5 {[%emt 0:02:52]} Nh7 {[%emt 0:13:01]} 16. Nxh7 {[%emt 0:01:27]} Kxh7 {[%emt 0:00:06]} 17. h4 {[%emt 0:02:41]} Kg8 {[%emt 0:01:43]} 18. g3 {[%emt 0:10:23]} b5 {[%emt 0:03:07]} 19. Kg2 {[%emt 0:13:35]} Rd8 {[%emt 0:05:52]} 20. Rh1 {[%emt 0:02:36]} Bf6 {[%emt 0:06:05]} 21. Nf3 {[%emt 0:02:24]} Ne7 {[%emt 0:07:26]} 22. Bg5 {[%emt 0:04:00]} Qc4 {[%emt 0:03:35]} 23. Qd2 {[%emt 0:02:48]} Bxg5 {[%emt 0:07:02]} 24. hxg5 {[%emt 0:08:44]} Qc7 {[%emt 0:07:15]} 25. Rh3 {[%emt 0:07:38]} Nc6 {[%emt 0:01:48]} 26. Ne5 {[%emt 0:02:45]} Nxe5 {[%emt 0:02:21]} 27. Rxe5 {[%emt 0:00:11]} Rac8 {[%emt 0:00:59]} 28. Qf4 {[%emt 0:00:28]} f6 {[%emt 0:20:42]} 29. Rxe6 {[%emt 0:01:57]} 1-0

[Event "5th EKA IIFL Investment 2019"]
[Site "Mumbai"]
[Date "2020.01.03"]
[Round "5.57"]
[White "Aakash Sharadchandra, Dalvi"]
[Black "Panesar Vedant"]
[Result "1/2-1/2"]
[ECO "D55"]
[WhiteElo "2107"]
[BlackElo "2247"]
[Annotator "ChessBase"]
[PlyCount "82"]
[EventDate "2019.12.30"]
[EventType "swiss"]
[EventCountry "IND"]
[SourceTitle "playchess.com"]
[Source "ChessBase"]
[SourceQuality "1"]
[TimeControl "40/5400+30:1800+30"]

1. d4 {[%emt 0:00:00]} d5 {[%emt 0:00:00]} 2. Nf3 {[%emt 0:00:04]} Nf6 {[%emt 0:00:00]} 3. c4 {[%emt 0:00:05]} e6 {[%emt 0:00:05]} 4. Nc3 {[%emt 0:00:04]} Be7 {[%emt 0:00:23]} 5. Bg5 {[%emt 0:00:09]} O-O {[%emt 0:00:09]} 6. e3 {[%emt 0:00:04]} b6 {[%emt 0:00:09]} 7. cxd5 {[%emt 0:00:47]} exd5 {[%emt 0:00:22]} 8. Bd3 {[%emt 0:00:08]} Bb7 {[%emt 0:00:26]} 9. O-O {[%emt 0:00:19]} Nbd7 {[%emt 0:01:17]} 10. Rc1 {[%emt 0:01:42]} a6 {[%emt 0:14:15]} 11. Bf5 {[%emt 0:13:35]} Re8 {[%emt 0:12:06]} 12. Qc2 {[%emt 0:05:13]} g6 {[%emt 0:15:14]} 13. Bh3 {[%emt 0:02:48]} Nh5 {[%emt 0:09:56]} 14. Bxe7 {[%emt 0:01:49]} Rxe7 {[%emt 0:00:51]} 15. Bxd7 {[%emt 0:14:50]} Qxd7 {[%emt 0:01:44]} 16. b4 {[%emt 0:00:21]} Nf6 {[%emt 0:08:22]} 17. a4 {[%emt 0:03:08]} Qd6 {[%emt 0:02:33]} 18. Qb3 {[%emt 0:03:53]} Nd7 {[%emt 0:01:53]} 19. Rc2 {[%emt 0:11:09]} Kg7 {[%emt 0:01:48]} 20. Rfc1 {[%emt 0:02:08]} c6 {[%emt 0:03:58]} 21. a5 {[%emt 0:02:11]} b5 {[%emt 0:00:12]} 22. Ne2 {[%emt 0:01:19]} Rae8 {[%emt 0:01:39]} 23. Nf4 {[%emt 0:01:51]} f6 {[%emt 0:02:05]} 24. Nd3 {[%emt 0:02:40]} Nb8 {[%emt 0:00:27]} 25. Qc3 {[%emt 0:10:19]} Bc8 {[%emt 0:02:20]} 26. Qc5 {[%emt 0:00:15]} Qxc5 {[%emt 0:00:13]} 27. Nxc5 {[%emt 0:00:27]} g5 {[%emt 0:01:30]} 28. Rc3 {[%emt 0:07:14]} Kg6 {[%emt 0:01:16]} 29. Re1 {[%emt 0:00:24]} Bg4 {[%emt 0:03:41]} 30. Nd2 {[%emt 0:00:44]} h5 {[%emt 0:00:30]} 31. f3 {[%emt 0:00:45]} Bc8 {[%emt 0:00:14]} 32. Kf2 {[%emt 0:00:26]} h4 {[%emt 0:01:12]} 33. e4 {[%emt 0:03:26]} dxe4 {[%emt 0:04:56]} 34. Rxe4 {[%emt 0:01:52]} Rxe4 {[%emt 0:01:29]} 35. Ndxe4 {[%emt 0:04:18]} Rd8 {[%emt 0:00:29]} 36. Rd3 {[%emt 0:00:39]} Bf5 {[%emt 0:01:22]} 37. Rd2 {[%emt 0:00:20]} Kf7 {[%emt 0:03:50]} 38. Nc3 {[%emt 0:05:30]} Be6 {[%emt 0:00:07]} 39. N3e4 {[%emt 0:00:01]} Bf5 {[%emt 0:00:00]} 40. Nc3 {[%emt 0:00:00]} Be6 {[%emt 0:00:00]} 41. N3e4 {[%emt 0:00:04]} Bf5 {[%emt 0:00:01]} 1/2-1/2

[Event "5th EKA IIFL Investment 2019"]
[Site "Mumbai"]
[Date "2020.01.03"]
[Round "5.63"]
[White "Manish Kumar"]
[Black "Ilamparthi A R"]
[Result "1/2-1/2"]
[ECO "B09"]
[WhiteElo "2168"]
[BlackElo "1880"]
[Annotator "ChessBase"]
[PlyCount "97"]
[EventDate "2019.12.30"]
[EventType "swiss"]
[EventCountry "IND"]
[SourceTitle "playchess.com"]
[Source "ChessBase"]
[SourceQuality "1"]
[TimeControl "40/5400+30:1800+30"]

1. e4 g6 2. d4 Bg7 3. Nc3 d6 4. f4 Nf6 5. Nf3 c5 6. dxc5 Qa5 7. Bd3 Qxc5 8. Qe2 O-O 9. Be3 Qc7 10. O-O Nc6 11. a3 a6 12. Nd5 Nxd5 13. exd5 Nb8 14. c4 a5 15. Rac1 Na6 16. b3 Bg4 17. Rce1 Bxf3 18. Rxf3 Nc5 19. Bc2 Rfe8 20. f5 Nd7 21. h4 a4 22. h5 axb3 23. fxg6 fxg6 24. Bd3 Rxa3 25. hxg6 Ra2 26. Bd2 Qc5+ 27. Kh1 Ne5 28. Rh3 Qd4 29. Qh5 h6 30. Bxh6 Qg4 31. Qxg4 Nxg4 32. Be3 Rf8 33. Bg1 b2 34. c5 Ra1 35. Bb1 dxc5 36. Rh7 c4 37. Rxg7+ Kxg7 38. Bd4+ Kh6 39. Bxb2 Ra6 40. g7 Rg8 41. Rxe7 Rd6 42. Bc1+ Kh5 43. Bh7 Rxd5 44. g3 Rd1+ 45. Kg2 Ra8 46. Bf4 Ra2+ 47. Kf3 Rf2+ 48. Ke4 Re2+ 49. Kf3 1/2-1/2